Cogmind - Beta 10.2 @@@ ROGUE MODE // 2021.01.12 @ 13:24:48 Player: Luigi Panache Result: Destroyed by G-47 Trooper with Particle Gun Performance ------------- Evolutions (0) 0 Regions Visited (1) 200 Robots Destroyed (10) 50 Value Destroyed (312) 312 Prototype IDs (0) 0 Alien Tech Used (0) 0 Bonus (0) 0 TOTAL SCORE: 562 Bonus ------- None Cogmind --------- Core Integrity 0/250 Matter 296/300 Energy 100/100 System Corruption 1% Temperature Cool (9) Movement Rolling (90) Ox1 Location -10/Materials Parts ------- > --- POWER (1) -------- (None) > --- PROPULSION (2) --- Wheel Wheel > --- UTILITY (2) ------ Large Storage Unit Large Storage Unit > --- WEAPON (2) ------- (None) > --- INVENTORY (16) --- Light Ion Engine Light Treads Light Treads Compact Wheel Compact Wheel Compact Wheel Small Storage Unit Peak State ------------ > --- POWER ------------ Light Ion Engine > --- PROPULSION ------- Aluminum Leg Aluminum Leg > --- UTILITY ---------- Small Storage Unit Large Storage Unit > --- WEAPON ----------- Medium Laser Small Laser > --- INVENTORY -------- Light Ion Engine Light Treads Light Treads Compact Wheel Compact Wheel Assault Rifle [Rating: 7] Favorites ----------- Power Ion Engine Engine Ion Engine Propulsion Aluminum Leg Leg Aluminum Leg Wheel Compact Wheel Utility Large Storage Unit Storage Large Storage Unit Weapon Small Laser Energy Gun Small Laser Ballistic Gun Assault Rifle Build | -11 -10 ------- Run | Scr Mat Slots Evolved . | . . Power . | . . Propulsion . | . . Utility . | . . Weapon . | . . Parts Attached 8 | . 8 Power 1 | . 1 Engine 1 | . 1 Core . | . . Reactor . | . . Propulsion 3 | . 3 Treads . | . . Leg . | . . Wheel 3 | . 3 Hover . | . . Flight . | . . Utility 2 | . 2 Device . | . . Storage 2 | . 2 Processor . | . . Hackware . | . . Protection . | . . Artifact . | . . Weapon 2 | . 2 Energy Gun 1 | . 1 Energy Cannon . | . . Ballistic Gun 1 | . 1 Ballistic Cannon . | . . Launcher . | . . Special Weapon . | . . Impact Weapon . | . . Slashing Weapon . | . . Piercing Weapon . | . . Special Melee Weapon . | . . Unidentified Prototypes . | . . Parts Lost 8 | . 8 Power 2 | . 2 Propulsion 2 | . 2 Utility . | . . Weapon 4 | . 4 Highest Loss Streak 4 | . 4 Average Slot Usage (%) 95 | . 95 Engine 12 | . 12 Leg 18 | . 18 Wheel 8 | . 8 Storage 27 | . 27 Energy Gun 15 | . 15 Ballistic Gun 10 | . 10 Naked Turns . | . . Heaviest Build 40 | 10 40 Greatest Support 26 | 20 26 Greatest Overweight (x) 3 | . 3 Average Overweight (x) 1 | . 1 Largest Inventory Capacity 16 | . 16 Average Capacity 15 | . 15 Most Carried 7 | . 7 Average Carried 6 | . 6 Final Capacity 16 | 6 16 Final Carried 7 | 6 7 Class Distribution -------------------- 100% | Mutant Dominant Class ---------------- Mutant | -10/Materials Resources | -11 -10 ----------- Run | Scr Mat Matter Collected 360 | 200 160 Remotely . | . . Salvage Created 385 | . 385 Parts 21 | . 21 Haulers Intercepted . | . . Recyclers Shooed . | . . Parts Field Recycled . | . . Retrieved Matter . | . . Parts Self-Destructed . | . . Prevented . | . . Kills | -11 -10 ------- Run | Scr Mat Combat Hostiles Destroyed 8 | . 8 Guns 8 | . 8 Classes Destroyed 3 | . 3 Worker 1 | . 1 Watcher 1 | . 1 Grunt 8 | . 8 Best Kill Streak 4 | . 4 Combat Bots Only 4 | . 4 Max Kills in Single Turn 1 | . 1 Gunslinging . | . . Exploded . | . . Melee . | . . Uniques/NPCs Destroyed . | . . Combat | -11 -10 -------- Run | Scr Mat Damage Taken 829 | . 829 Core 251 | . 251 Absorbed by Shields . | . . Core Remaining (%) 100 | 100 . Volleys Fired 62 | . 62 Largest 2 | . 2 Hottest 90 | . 90 Shots Fired 111 | . 111 Gun 111 | . 111 Cannon . | . . Launcher . | . . Special . | . . Kinetic 52 | . 52 Thermal 59 | . 59 Explosive . | . . Electromagnetic . | . . Robot Hit Streak 12 | . 12 Robot Miss Streak 3 | . 3 Penetration Max . | . . Secondary Targets . | . . Shots Hit Robots 75 | . 75 Core Hits 24 | . 24 Critical Hits . | . . Critical Kills . | . . Critical Parts Destroyed . | . . Melee Attacks . | . . Impact . | . . Slashing . | . . Piercing . | . . Sneak Attacks . | . . Combat Hostiles . | . . Follow-up Attacks . | . . Damage Inflicted 920 | . 920 Guns 886 | . 886 Cannons . | . . Explosions . | . . Melee . | . . Ramming 34 | . 34 Kinetic 419 | . 419 Thermal 467 | . 467 Explosive . | . . Electromagnetic . | . . Impact . | . . Slashing . | . . Piercing . | . . Highest Corruption 1 | . 1 Average Corruption 1 | . 1 Corruption Purged . | . . Overload Shots . | . . Overflow Damage . | . . Projectiles . | . . Explosions . | . . Melee . | . . Knockbacks . | . . Impact . | . . Kinetic . | . . Secondary . | . . Self-Inflicted Damage 15 | . 15 Shots . | . . Rammed 8 | . 8 Targets Rammed 8 | . 8 Kicked . | . . Crushed . | . . Highest Temperature 310 | . 310 Average Temperature 92 | . 92 Received Heat Transfer 456 | . 456 Effects 1 | . 1 Shutdowns 1 | . 1 Siege Activations . | . . Robots Corrupted . | . . Combat Hostiles . | . . Parts Fried . | . . Impact Corruptions . | . . Robots Melted . | . . Combat Hostiles . | . . Parts Melted 2 | . 2 Heat Transferred 1110 | . 1110 Parts Sabotaged . | . . Parts Stolen . | . . Parts Stripped . | . . Power Chain Reactions . | . . Missiles Intercepted . | . . Alert | -11 -10 ------- Run | Scr Mat Peak Influence 197 | . 197 Initial . | . . Average 74 | . 74 Maximum Alert Level . | . . Low Security (%) 100 | . 100 Level 1 . | . . Level 2 . | . . Level 3 . | . . Level 4 . | . . Level 5 . | . . High Security . | . . Max Security . | . . Squads Dispatched 2 | . 2 Investigation 1 | . 1 Extermination . | . . Reinforcement 1 | . 1 Assault . | . . Garrison . | . . Intercept . | . . Construction Impeded . | . . Haulers Reinforced . | . . Stealth | -11 -10 --------- Run | Scr Mat Distress Signals . | . . Communications Jammed . | . . Distress Signals . | . . Times Spotted 16 | . 16 Peak Tracking Total 6 | . 6 Tactical Retreats 1 | . 1 Traps | -11 -10 ------- Run | Scr Mat Traps Triggered 1 | . 1 Indirectly . | . . Trap Hack Attempts . | . . Triggered . | . . Disarmed . | . . Reprogrammed . | . . Reused . | . . Traps Extracted . | . . Installed . | . . Triggered . | . . Machines | -11 -10 ---------- Run | Scr Mat Machines Disabled 1 | . 1 Max in Single Turn 1 | . 1 Machines Sabotaged . | . . Garrisons Compromised . | . . Overloaded Fab Kills . | . . Fab Network Shutdowns . | . . Hacking | -11 -10 --------- Run | Scr Mat Machines Accessed 2 | . 2 Terminals 1 | . 1 Fabricators . | . . Repair Stations . | . . Recycling Units 1 | . 1 Scanalyzers . | . . Garrison Access . | . . Total Hacks 5 | . 5 Successful 3 | . 3 Failed 2 | . 2 Catastrophic . | . . Database Lockouts . | . . Manual 2 | . 2 Terminals 2 | . 2 Fabricators . | . . Repair Stations . | . . Recycling Units 3 | . 3 Scanalyzers . | . . Garrison Access . | . . Terminal Hacks . | . . Fabricator Hacks . | . . Repair Station Hacks . | . . Recycling Unit Hacks 1 | . 1 Retrieve Components 1 | . 1 Scanalyzer . | . . Garrison Access Hacks . | . . Unauthorized Hacks 2 | . 2 Terminals 1 | . 1 Botnet 1 | . 1 Fabricators . | . . Repair Stations . | . . Recycling Units 1 | . 1 Mask 1 | . 1 Scanalyzers . | . . Garrison Access . | . . Data Cores Recovered . | . . Used . | . . Hacking Detections 1 | . 1 Full Trace Events . | . . Feedback Events . | . . Feedback Blocked . | . . Robot Schematics Acquired . | . . Robots Built . | . . Matter . | . . Time . | . . Total Robot Build Rating . | . . Part Schematics Acquired . | . . Parts Built . | . . Matter . | . . Time . | . . Total Part Build Rating . | . . Parts Repaired . | . . Time . | . . Parts Recycled . | . . Recycled Matter . | . . Retrieved Matter . | . . Retrieved Components 3 | . 3 Parts Scanalyzed . | . . Part Schematics Acquired . | . . Parts Damaged . | . . Bothacking | -11 -10 ------------ Run | Scr Mat Used RIF Installer . | . . Robots Hacked . | . . Non-combat . | . . Combat . | . . Robot Hacks Applied . | . . Relay Couplers Released . | . . Robots Rewired . | . . Allies Hacked . | . . Hacks Repelled . | . . Allies | -11 -10 -------- Run | Scr Mat Total Allies . | . . Largest Group . | . . Highest-Rated Group . | . . Highest-Rated Ally . | . . Total Orders . | . . Ally Attacks . | . . Total Damage . | . . Kills . | . . Allies Corrupted . | . . Allies Melted . | . . Intel | -11 -10 ------- Run | Scr Mat Robot Analysis Total . | . . Derelict Logs Recovered . | . . Drone Launches . | . . Drone Recoveries . | . . Exploration | -11 -10 ------------- Run | Scr Mat Turns Passed 552 | . 552 Spaces Moved 158 | 1 157 Core . | . . Treads . | . . Legs 93 | 1 92 Wheels 65 | . 65 Hover . | . . Flight . | . . Fastest Speed 90 | 120 90 Average Speed 135 | 120 135 Slowest Speed 210 | 120 210 Overloaded Moves . | . . Propulsion Burnouts . | . . Robots Hopped . | . . Cave-ins Triggered . | . . Exploration Rate (%) 23 | 2 44 Regions Visited 1 Branch Regions . Pre-discovered Areas . | . . Known Exits Taken . | . . Unknown Exits Taken 1 | 1 . Scrap Searched . | . . Spaces Dug . | . . Terrain Destroyed . | . . Melee . | . . Projectile . | . . AOE . | . . Terrain Rammed . | . . Walls Destroyed . | . . Machines Disabled . | . . Actions | -11 -10 --------- Run | Scr Mat Total 381 | . 381 Wait 146 | . 146 Move 157 | . 157 Hop . | . . Pick Up . | . . Fast Attach 5 | . 5 Attach 1 | . 1 Detach . | . . Swap 2 | . 2 Drop . | . . Fire 62 | . 62 Melee . | . . Ram 7 | . 7 Kick 1 | . 1 Crush . | . . Escape Stasis . | . . Rewire . | . . Trap . | . . Miscellaneous . | . . Route ------- -11/Scrapyard -10/Materials (discovered 3 exits: [*Mat] / [*Min x2]) History --------- Turn | Location | Event 1 | -11/Scrapyard | Discovered new exit (range 0) 1 | -11/Scrapyard | Entered Materials 21 | -10/Materials | Discovered new exit (range 12) 157 | -10/Materials | Lost 3 parts (1p2w) 241 | -10/Materials | Core integrity fell below 50% 272 | -10/Materials | Discovered new exit (range 8) 306 | -10/Materials | Build established: Mutant 458 | -10/Materials | Discovered new exit (range 12) 540 | -10/Materials | Core integrity fell below 20% 553 | -10/Materials | Destroyed by G-47 Trooper with Particle Gun Last Messages --------------- 00297_ T-07 Excavator is excavating. 00297_ U-05 Engineer lays Concrete. 00326_ O-16 Technician: "IFF HANDSHAKE FAILED. SECURING TERMINAL." 00329_ ALERT: Hostiles spotted, dispatching reinforcements to Terminal M001. 00458_ EXIT=FOUND 00495_ Aluminum Leg destroyed. 00508_ G-34 Mercenary destroyed. 00513_ Acquired Wheel. 00517_ Electrolysis Chamber disabled. 00525_ Sml. Laser destroyed. 00530_ G-34 Mercenary destroyed. 00543_ Assault Rifle destroyed. 00546_ Slammed into G-47 Trooper. 00548_ Acquired 44 matter. 00548_ Slammed into G-47 Trooper. 00549_ Ion Engine destroyed. 00549_ System corrupted by crushing effect (+1). 00550_ Slammed into G-47 Trooper. 00552_ Destabilizing: Core damaged (-5). Map ----- +----------------------------------------------------+ | ???????????????????????????????????? | | ???????????????????????????????????? | | #???????????????????????????????????? | | ####????????????????????????????????? | | """#????????????????????????????????? | | "#????????????????????????????????? | | !"#????????????????????????????????? | | < ""#????????????????????????????????? | | !"#????????????????????????????????? | | "#????????????????????? ??????????? | | ""???????????# ?????????? ??????????? | | #????????????# ????????? ??????????? | | #????????????# ????????? #?????????? | | #????????????# ???????? #?????????? | | #????????????# ???????# #?????????? | | ############## ###+#### ##????????? | | T #????????? | | +????????? | | #????????? | | ########### ##??# #????????? | | #??????????+###?# """ %#????????? | | #####??????? # """ #????????? | | ! # #????????? /a " " #????????? | | = = #????????????# * #????????? | | *!####?##########?# #????????? | | #????# #?# @ !!=#????????? | | #????# #?# g !! #????????? | | ###### #?#o ! |#????????? | | # """ #?# #????????? | | + """ #?# #????????? | | # """ #?# #????? | | ###### """ ! ### #### < #????? | | #????# """ + #??# #????? | | #????# ####+#############????? | | #????########## #???????????? | | #?????????????# """ #???????????? | | #+##?????????????# """""#???????????? | | ?????????????????# """""#???????????? | | ?????????????????# """""#???????????? | | ?????????????????# ! """ ????????????? | | ?????????????????# ?????????????? | | ?????????????????# ???????????????? | | ?????????????????######????????????????? | | ???????????????????????????????????????? | | ???????????????????????????????????????? | | | | | | | | | | | +----------------------------------------------------+ Best States ------------- Heat Dissipation 25 Energy Generation 10 Energy Capacity 250 Matter Stores 300 Matter Capacity 300 Sight Range 16 Terrain Scan Density 10 Evasion (%) 40 Item Schematics ----------------- None Robot Schematics ------------------ None Fabricated ------------ Nothing Alien Tech Used ----------------- None Achievements -------------- None Challenges ------------ None Game ------ Seed AbsorptionTacticalHumpback Manual? 0 Play Time 00:06:14 Cumulative 233.1 hours Start 2021.01.12 @ 13:21:07 End 2021.01.12 @ 13:24:48 Sessions 1 Manual Loads 0 Difficulty Rogue Special Mode None Game No. 213 Rogue 84 Adventurer 63 Explorer 66 Win Type - Total 14 Types 11/0/2/1/0/0/0/0/0 Lore% 72 Gallery% 81 Achievement% 63 Wizard Run 0 Options --------- ASCII 0 Keyboard 0 Movement Numpad Keybinds 0 Fullscreen 2 Font 18/TerminusBold Map View 76x50 Tactical HUD 1 Map Filters NONE Filters NONE Steam 1 RUN: 5c393e54-a91c-4a79-8f44-01743ff53bf5